Cogmind - Beta 14 *** ADVENTURER MODE // 2024.08.31 @ 12:33:25 Player: AnotherZach Result: Destroyed by H-88 Terminator with KE Penetrator Performance ------------- Evolutions (8) 4000 Regions Visited (17) 3400 Robots Destroyed (157) 785 Value Destroyed (6027) 6027 Prototype IDs (79) 1580 Alien Tech Used (3) 600 Bonus (6645) 6645 TOTAL SCORE: 23037 Bonus ------- High Alert Combat Kills 645 Follower Combat Kills 1322 Entered Garrisons 200 Used RIF Installer 500 Registered with UFD 300 Met Zhirov 300 Found Hidden Lab 3000 Scanned by Researcher 500 Pursued by Intercept 500 Friendly Fire -622 Cogmind --------- Core Integrity 0/1450 Matter 163/300 Energy 706/1240 System Corruption 21% Temperature Cool (3) Movement Treading (145) Location -2/Testing Parts ------- > --- POWER (2) -------- Zero-point Reactor > --- PROPULSION (6) --- Biometal Heavy Treads Myomer Leg > --- UTILITY (11) ----- Advanced Heat Sink Advanced Heat Sink Medium Storage Unit Improved Energy Well Experimental Energy Well Advanced Gravity Neutralizer Backup Plating VII Centrium Light Armor Plating Improved System Guard Advanced Corruption Screen > --- WEAPON (4) ------- Heavy Tesla Rifle Nanosword > --- INVENTORY (10) --- Light Quantum Reactor Improved Antigrav System Improved Antigrav System Combat Linear Gravjet Cooled Q-thruster High-capacity Storage Unit Advanced Gravity Neutralizer Core Reset Matrix Peak State ------------ > --- POWER ------------ Quantum Reactor Zero-point Reactor > --- PROPULSION ------- Biometal Heavy Treads Improved Antigrav System Improved Antigrav System Improved Antigrav System > --- UTILITY ---------- Experimental Heat Sink High-capacity Storage Unit Experimental Energy Well Advanced Gravity Neutralizer Advanced Target Analyzer Centrium Light Armor Plating Heavy Regenerative Plating Improved System Guard Advanced Corruption Screen System Restoration Module > --- WEAPON ----------- Improved Matter Neutralizer Improved Potential Cannon Nanosword > --- INVENTORY -------- Micro Antimatter Reactor Combat Linear Gravjet Cooled Q-thruster Medium Storage Unit Improved Energy Well Advanced Energy Well Advanced Gravity Neutralizer Assault Drone Bay Transdimensional Reconstructor Core Reset Matrix Tachyon Dispersion Ray [Rating: 188] Favorites ----------- Power Micro Nuclear Core Engine Light Ion Engine Power Core Micro Nuclear Core Reactor Light Antimatter Reactor Propulsion Light Treads Treads Light Treads Leg Biometal Leg Wheel Wheel Hover Unit Combat Gravmag System Flight Unit Cooled Nuclear Pulse Thruster Utility Surveybot 17 Chip Device Improved Terrain Scanner Storage Large Storage Unit Processor Surveybot 17 Chip Hackware Improved System Shield Protection Improved Light Armor Plating Weapon Battle Rifle Energy Gun Gatling Laser Energy Cannon Long-range Proton Cannon Ballistic Gun Battle Rifle Ballistic Cannon Hardcell Cannon Launcher Missile Launcher Special Weapon Improved Remote Datajack Impact Weapon Power Maul Slashing Weapon Makeshift Sword Piercing Weapon Enhanced Force Lance Special Melee Weapon Advanced Datajack Build | -11 -10 -10 -7 -7 -5 -5 -5 -5 -4 -4 -4 -4 -3 -3 -3 -2 -2 ------- Run | Yrd Mat Sub Rec Scr Fac Upp Upp Zhi Pro Fac Gar Fac Res Arm Lab Res Tes Slots Evolved 16 | . . . . . 10 . . . . 2 . . 2 . . 2 . Power 1 | . . . . . 1 . . . . . . . . . . . . Propulsion 4 | . . . . . 3 . . . . 1 . . . . . . . Utility 9 | . . . . . 5 . . . . 1 . . 1 . . 2 . Weapon 2 | . . . . . 1 . . . . . . . 1 . . . . Parts Attached 300 | 7 8 7 9 9 38 . 8 4 2 36 7 47 8 10 10 26 64 Power 31 | 1 . . 1 2 6 . . . . 2 . 4 . 2 1 2 10 Engine 8 | 1 . . . 2 5 . . . . . . . . . . . . Core 8 | . . . 1 . 1 . . . . 2 . 2 . . 1 . 1 Reactor 15 | . . . . . . . . . . . . 2 . 2 . 2 9 Propulsion 68 | 2 2 2 2 3 4 . . . . 12 . 14 . 2 1 11 13 Treads 8 | . . 2 2 3 . . . . . . . . . . . . 1 Leg 4 | . . . . . . . . . . . . 2 . . . . 2 Wheel 4 | 2 2 . . . . . . . . . . . . . . . . Hover 23 | . . . . . . . . . . 2 . 6 . 2 1 5 7 Flight 29 | . . . . . 4 . . . . 10 . 6 . . . 6 3 Utility 124 | 2 1 1 2 3 21 . 7 2 . 13 3 17 6 3 5 8 30 Device 69 | 1 . 1 1 1 11 . 6 1 . 6 1 10 6 2 1 7 14 Storage 14 | 1 1 . . 1 3 . . . . . . 2 . . . . 6 Processor 17 | . . . 1 1 3 . . . . 4 1 3 . . . . 4 Hackware 10 | . . . . . 2 . 1 1 . 3 . . . 1 1 . 1 Protection 14 | . . . . . 2 . . . . . 1 2 . . 3 1 5 Artifact . | . . . . . . . . . . . . . . . . . . Weapon 77 | 2 5 4 4 1 7 . 1 2 2 9 4 12 2 3 3 5 11 Energy Gun 12 | . . 1 1 . . . . . . 2 1 . . . 2 1 4 Energy Cannon 9 | . . . . . 1 . . . . . . 1 . . 1 1 5 Ballistic Gun 23 | 2 3 1 2 . 2 . . 1 . 3 2 6 . 1 . . . Ballistic Cannon 3 | . . 1 . . . . . . . . . 1 1 . . . . Launcher 7 | . 1 1 . . . . 1 . 1 1 . . . 1 . 1 . Special Weapon 9 | . 1 . . . 4 . . . . 1 1 . . . . 1 1 Impact Weapon 4 | . . . . . . . . . . . . 3 1 . . . . Slashing Weapon 6 | . . . 1 1 . . . 1 1 . . . . 1 . . 1 Piercing Weapon 2 | . . . . . . . . . . 1 . . . . . 1 . Special Melee Weapon 2 | . . . . . . . . . . 1 . 1 . . . . . Unidentified Prototypes 23 | . . . . . . . . 1 . 1 . 4 . 1 4 . 12 Corrupted Parts 5 | . . . . . . . . . . . . . . . . 5 . System Corruption 17 | . . . . . . . . . . . . . . . . 17 . Parts Lost 60 | . . . 2 . 1 . . . 1 11 3 6 . . 2 20 14 Power 10 | . . . 1 . . . . . 1 2 . 2 . . 1 2 1 Propulsion 12 | . . . . . . . . . . 2 . . . . . 6 4 Utility 23 | . . . . . 1 . . . . 3 3 3 . . . 8 5 Weapon 15 | . . . 1 . . . . . . 4 . 1 . . 1 4 4 Highest Loss Streak 13 | . . . 1 . 1 . . . 1 10 1 2 . . 1 13 7 To Critical Strikes . | . . . . . . . . . . . . . . . . . . Average Slot Usage (%) 87 | . 100 100 99 89 66 70 71 71 76 83 80 89 95 96 93 73 73 Engine 4 | . 14 14 3 1 4 5 5 5 4 6 . . . . . . . Core 4 | . . . 10 10 1 . . . . 1 5 4 4 1 2 . . Reactor 1 | . . . . . . . . . . . . 2 4 7 4 4 4 Treads 8 | . . 16 28 25 . . . . . . . . . . . . 1 Wheel 4 | . 28 12 . . . . . . . . . . . . . . . Hover 4 | . . . . . . . . . . . . 14 28 28 24 18 6 Flight 5 | . . . . . 9 10 10 10 10 16 21 12 . . . . 10 Device 12 | . 14 14 3 11 16 15 14 11 10 7 5 16 19 18 13 13 18 Storage 8 | . 14 14 14 12 3 5 5 5 5 4 5 5 4 4 4 4 5 Processor 9 | . . . 10 2 15 15 15 15 15 15 16 16 19 19 15 12 10 Hackware 3 | . . . . . 5 10 10 12 15 16 6 . . . 2 3 . Energy Gun 3 | . . 4 . 11 . . . . . 1 4 2 . . 1 2 . Ballistic Gun 8 | . 25 13 12 11 . 5 5 . . 1 7 6 4 5 9 1 . Special Weapon 1 | . 1 . . . 2 5 5 5 5 . 3 . . . . 1 . Slashing Weapon 2 | . . . 10 . 1 . . 3 7 1 . . . . 4 3 2 Peak Build Rating 188 | 8 8 14 23 28 103 102 109 109 111 134 109 128 135 133 142 155 188 Average Rating 68 | 6 7 11 21 20 94 101 104 104 109 116 102 108 124 126 132 128 141 On Entrance 78 | . 8 8 14 21 28 101 102 102 109 105 109 96 122 127 130 142 88 Naked Turns . | . . . . . . . . . . . . . . . . . . Heaviest Build 120 | 12 29 36 36 36 53 30 36 31 34 35 37 93 97 93 94 120 88 Greatest Support 97 | 20 20 40 40 42 30 30 30 30 30 42 42 97 97 97 94 92 91 Greatest Overweight (x) 6 | . 1 1 . . 2 . 1 1 1 1 . 1 . . 1 6 1 Average Overweight (x) . | . . . . . . . . . . . . . . . . . . Largest Inventory Capacity 20 | 8 15 15 15 15 15 10 10 10 10 10 10 20 20 20 20 20 20 Average Capacity 13 | 7 13 15 15 13 8 10 10 10 10 10 10 19 20 20 20 20 10 Most Carried 20 | 8 13 15 15 15 15 10 10 10 10 10 10 20 20 20 20 20 19 Average Carried 12 | 4 10 14 14 12 6 9 9 9 9 9 9 18 19 19 19 15 8 Final Capacity 20 | 8 15 15 15 15 10 10 10 10 10 10 10 20 20 20 20 20 10 Final Carried 20 | 8 13 15 15 15 9 10 10 10 10 10 9 20 20 20 20 16 8 Class Distribution -------------------- 32% | Mutant 21% | Scavenger-Mutant 14% | Hacker-Mutant 8% | Hacker-Sprinter 4% | Scout Dominant Class ---------------- Mutant | -10/Materials Mutant | -10/Subcaves Mutant | -7/Recycling Scavenger-Mutant | -7/Scraptown Hacker-Mutant | -5/Factory Hacker-Mutant | -5/Upper Caves Hacker-Mutant | -5/Upper Caves Hacker-Mutant | -5/Zhirov Hacker-Mutant | -4/Proximity Caves Hacker-Sprinter | -4/Factory Hacker-Sprinter | -4/Garrison Scout | -4/Factory Infiltrator-Mutant | -3/Research Mutant | -3/Armory Scavenger-Tank | -3/Lab Hacker-Mutant | -2/Research Scavenger-Mutant | -2/Testing Resources | -11 -10 -10 -7 -7 -5 -5 -5 -5 -4 -4 -4 -4 -3 -3 -3 -2 -2 ----------- Run | Yrd Mat Sub Rec Scr Fac Upp Upp Zhi Pro Fac Gar Fac Res Arm Lab Res Tes Matter Collected 5664 | 334 395 320 308 340 437 5 204 371 57 524 69 913 88 275 66 375 583 Remotely 374 | . . . . . . . . . . . . 99 . . . . 275 Salvage Created 7300 | 137 535 159 135 . 373 . 113 459 . 498 124 1272 195 121 63 741 2375 Parts 313 | 15 29 15 7 . 7 . 8 6 3 35 4 48 7 4 6 35 84 Haulers Intercepted 4 | . 2 . . . . . . . . . . 1 . . . . 1 Recyclers Shooed 9 | . 1 . . . . . . . . . . 6 . . . . 2 Parts Field Recycled . | . . . . . . . . . . . . . . . . . . Retrieved Matter . | . . . . . . . . . . . . . . . . . . Parts Self-Destructed 25 | . . 11 . . . . 6 2 6 . . . . . . . . Prevented 9 | . . . . . . . 9 . . . . . . . . . . Kills | -11 -10 -10 -7 -7 -5 -5 -5 -5 -4 -4 -4 -4 -3 -3 -3 -2 -2 ------- Run | Yrd Mat Sub Rec Scr Fac Upp Upp Zhi Pro Fac Gar Fac Res Arm Lab Res Tes Combat Hostiles Destroyed 93 | . 10 7 3 . 6 . 6 . 1 16 1 8 3 1 1 8 22 Melee 15 | . . . . . 4 . . . . 1 . . . . 1 3 6 Guns 21 | . 4 3 2 . . . 2 . . 1 1 7 . . . 1 . Cannons 11 | . . 4 . . 2 . . . . . . . . . . 1 4 AOE 39 | . 6 . 1 . . . 4 . 1 14 . . . . . 3 10 Classes Destroyed 20 | 3 4 2 1 . . . 1 . 1 3 . . . . . 3 2 Worker 15 | 1 2 . . . . . . . . 2 . 2 5 . . 1 2 Builder 8 | . . . . . . . . . . 3 . 4 1 . . . . Tunneler 5 | 3 1 . . . . . . . . 1 . . . . . . . Hauler 4 | . 2 . . . . . . . . . . 1 . . . . 1 Recycler 15 | 1 2 . . . 1 . . . . 1 . 4 . . . 1 5 Mechanic 2 | . . . . . . . . . . . . . . . . 1 1 Operator 2 | . . . . . . . . . . 1 . . . . . . 1 Drone 3 | . . . . . . . . . 1 . . . . . . . 2 Turret 2 | . . 2 . . . . . . . . . . . . . . . Watcher 5 | . 2 . . . 1 . . . . 1 . . . 1 . . . Swarmer 36 | . 6 4 . . 5 . 5 . . 13 . . 3 . . . . Cutter 4 | . . . . . . . . . . 1 . . . . . 3 . Grunt 19 | . 4 . . . 1 . . . . 2 1 2 . . . 1 8 Researcher 6 | . . . . . . . . . . . . . . . . . 6 Sentry 9 | . . . 3 . . . . . . . . 4 . 1 . 1 . Specialist 1 | . . . . . . . . . . . . . . . . 1 . Hunter 5 | . . . . . . . . . . . . . . . . 1 4 Programmer 9 | . . . . . . . 1 . . . . 2 . . . 1 5 Q-Series 1 | . . . . . . . . . . . . . . . . . 1 Tracker 2 | . . . . . . . . . . . . . . . . . 2 Combat Programmer 2 | . . . . . . . . . . . . . . . . . 2 Subdweller 3 | . . 3 . . . . . . . . . . . . . . . Best Kill Streak 10 | 2 9 4 2 . 4 . 5 . 1 7 1 4 3 1 1 6 10 Combat Bots Only 8 | . 8 4 2 . 4 . 5 . 1 5 1 2 2 1 1 3 5 Max Kills in Single Turn 4 | 1 3 1 1 . 1 . 2 . 1 4 1 2 1 1 1 3 3 Gunslinging . | . . . . . . . . . . . . . . . . . . Exploded 3 | . 2 . 1 . . . 2 . 1 3 . . . . . 3 3 Melee 1 | . . . . . 1 . . . . 1 . . . . 1 1 1 Uniques/NPCs Destroyed 1 | . . . . . . . . . . . . . . . 1 . . A5 (-3/Lab) Combat | -11 -10 -10 -7 -7 -5 -5 -5 -5 -4 -4 -4 -4 -3 -3 -3 -2 -2 -------- Run | Yrd Mat Sub Rec Scr Fac Upp Upp Zhi Pro Fac Gar Fac Res Arm Lab Res Tes Hostile Shots Fired 1342 | . 23 63 63 . 138 24 23 . 36 157 83 112 45 4 38 277 256 Missed 541 | . 8 25 20 . 63 18 8 . 24 88 34 47 17 1 17 101 70 Damage Taken 14592 | . 122 312 242 . 1019 86 224 . 216 1784 755 1162 476 65 425 3877 3827 Core 2807 | . 25 34 46 . 117 . 15 . 33 693 141 128 138 . 20 658 759 Absorbed by Shields . | . . . . . . . . . . . . . . . . . . Reduced by Siege Mode 50 | . . . . . . . . . . . . . . . . . 50 Redirected to Shielding 108 | . . . . . . . . . . . . . . . 12 96 . Ignored by Resistances 3819 | . 38 84 81 . 290 24 63 . 62 408 221 325 136 17 115 1050 905 Regen/Repaired (Parts) 990 | . 14 . . . 138 . . . . 45 . 122 . . . 119 552 Core Remaining (%) 71 | 100 . . . 58 . . . . 83 . . 16 . . 98 . . Volleys Fired 347 | 16 60 27 9 . 18 . 11 3 2 41 26 68 2 2 2 33 27 Largest 3 | 2 2 2 2 . 1 . 2 1 1 3 3 3 2 2 3 3 2 Hottest 348 | 40 120 99 53 . 81 . 59 7 36 348 260 225 98 98 133 121 313 Shots Fired 560 | 32 116 54 14 . 18 . 15 3 2 52 52 116 4 4 6 42 30 Gun 425 | 32 106 27 11 . 1 . 12 . . 28 51 116 2 2 4 29 4 Cannon 75 | . . 24 . . 12 . . . . . . . 2 2 2 7 26 Launcher 38 | . 7 3 3 . . . 3 . 1 19 . . . . . 2 . Special 22 | . 3 . . . 5 . . 3 1 5 1 . . . . 4 . Kinetic 355 | 32 106 51 14 . 1 . 12 . . 13 28 77 4 4 6 7 . Thermal 116 | . 3 3 . . . . . . . 15 23 39 . . . 7 26 Explosive 30 | . 7 . . . . . 3 . 1 19 . . . . . . . Electromagnetic 40 | . . . . . 12 . . . . . . . . . . 24 4 Robot Hit Streak 40 | 10 14 22 16 . 8 . 12 15 16 5 25 40 14 18 3 10 23 Robot Miss Streak 4 | 2 4 2 1 . 1 . 2 . 1 2 . 1 . . 2 3 1 Penetration Max 1 | . . . . . . . . . . . . 1 . . . 1 . Secondary Targets 2 | . . . . . . . . . . . . 2 . . . . . Max Gunslinging Chain 1 | . . . . . . . . . . . . 1 . . . . . Capacitor 7 | . . . . . . . . . . . . . . . . 7 . Shots Hit Robots 466 | 24 70 31 12 . 20 . 12 14 1 25 20 96 14 6 16 57 48 Core Hits 254 | 8 33 12 17 . 7 . 8 3 1 40 8 32 3 2 6 37 37 Critical Kills 6 | 1 . 1 . . . . . . . . . . 1 . . 1 2 Critical Parts Destroyed 11 | . 1 . . . . . . . . . . 3 5 2 . . . Critical Strikes 31 | 1 1 2 . . . . . . . 1 . 3 6 2 3 7 5 Meltdown 3 | . . . . . . . . . . . . . . . . 1 2 Destroy 8 | 1 1 1 . . . . . . . . . 2 . 1 2 . . Blast 1 | . . 1 . . . . . . . . . . . . . . . Smash 8 | . . . . . . . . . . . . 1 6 1 . . . Sever 7 | . . . . . . . . . . . . . . . 1 6 . Impale 4 | . . . . . . . . . . 1 . . . . . . 3 Melee Attacks 172 | . . . 4 . 6 . . 11 4 33 . 13 18 3 18 27 35 Impact 34 | . . . . . . . . . . . . 13 18 3 . . . Slashing 109 | . . . 4 . 6 . . 11 4 18 . . . . 18 27 21 Piercing 27 | . . . . . . . . . . 13 . . . . . . 14 Sneak Attacks 19 | . . . . . . . . . . 1 . 3 7 . . . 8 Combat Hostiles . | . . . . . . . . . . . . . . . . . . Follow-up Attacks 1 | . . . . . . . . . . . . . . . . . 1 Damage Inflicted 23125 | 256 1074 680 404 . 650 . 541 861 51 2287 478 3032 1011 204 758 1986 8852 Guns 5266 | 256 724 274 207 . . . 193 . . 184 478 2470 47 56 34 256 87 Cannons 4162 | . . 243 . . 366 . . . . . . . 70 76 30 319 3058 Explosions 7191 | . 350 163 179 . . . 348 . 51 1728 . 131 . . . 482 3759 Melee 6506 | . . . 18 . 284 . . 861 . 375 . 431 894 72 694 929 1948 Ramming . | . . . . . . . . . . . . . . . . . . Kinetic 4799 | 256 724 680 386 . . . 193 . . 144 268 1619 117 132 64 216 . Thermal 8516 | . . . . . . . . . . 40 210 982 . . . 467 6817 Explosive 2477 | . 350 . . . . . 348 . 51 1728 . . . . . . . Electromagnetic 827 | . . . . . 366 . . . . . . . . . . 374 87 Impact 1397 | . . . . . . . . . . . . 431 894 72 . . . Slashing 4052 | . . . 18 . 284 . . 861 . 233 . . . . 694 929 1033 Piercing 1057 | . . . . . . . . . . 142 . . . . . . 915 Highest Corruption 37 | . . . . . 2 2 3 3 3 2 2 2 . . . 36 37 Average Corruption 8 | . . . . . 1 2 2 3 3 1 2 2 . . . 19 27 Corruption Purged 4 | . . . . . . . . . . . . . . . . . 4 Corruption Blocked 4 | . . . . . . . . . . . . . . . . . 4 Effects 72 | . . . . . . 2 6 2 8 5 4 5 . . . 3 37 Message Errors 16 | . . . . . . . . 2 4 1 2 . . . . . 7 Matter Fused 20 | . . . . . . 1 1 . 2 1 2 2 . . . 2 9 Heat Flow Errors 6 | . . . . . . . . . . . . . . . . . 6 Energy Discharges 9 | . . . . . . 1 1 . 1 1 . . . . . . 5 Parts Rejected 1 | . . . . . . . 1 . . . . . . . . . . Data Loss (minor) 7 | . . . . . . . . . . 1 . 1 . . . 1 4 Data Loss (major) 3 | . . . . . . . 1 . . 1 . . . . . . 1 Misfires 2 | . . . . . . . 1 . . . . 1 . . . . . Alerts 4 | . . . . . . . 1 . 1 . . . . . . . 2 Misdirections 3 | . . . . . . . . . . . . . . . . . 3 Weapon Failures 1 | . . . . . . . . . . . . 1 . . . . . Overload Shots 20 | . . . . . . . . . . 6 4 10 . . . . . Overflow Damage 3007 | . . 25 . . 155 . 62 260 . 162 . 277 530 30 . 15 1491 Projectiles 817 | . . 10 . . 63 . . . . . . . . . . . 744 Explosions 454 | . . 15 . . . . 62 . . 64 . 23 . . . . 290 Melee 1736 | . . . . . 92 . . 260 . 98 . 254 530 30 . 15 457 Knockbacks 11 | . . 5 . . . . . . . . . 2 3 1 . . . Impact 4 | . . . . . . . . . . . . 2 2 . . . . Kinetic 7 | . . 5 . . . . . . . . . . 1 1 . . . Secondary . | . . . . . . . . . . . . . . . . . . Self-Inflicted Damage 455 | . . . . . . . 2 . 43 72 . . . . . 68 270 Shots 12 | . . . . . . . 1 . 1 2 . . . . . 3 5 Rammed . | . . . . . . . . . . . . . . . . . . Targets Rammed . | . . . . . . . . . . . . . . . . . . Kicked . | . . . . . . . . . . . . . . . . . . Crushed . | . . . . . . . . . . . . . . . . . . Highest Temperature 690 | . 24 7 56 . 84 10 . . . 538 258 337 50 49 152 359 690 Average Temperature 81 | . 12 3 22 . 29 10 . . . 136 82 85 7 10 95 105 183 Received Heat Transfer 1777 | . 60 120 96 . 204 63 9 . 12 144 177 198 145 18 . 180 351 Effects 23 | . . . . . . . . . . 5 1 2 . . . 1 14 Shutdowns 7 | . . . . . . . . . . . . . . . . 1 6 Energy Bleed 5 | . . . . . . . . . . 2 1 1 . . . . 1 Interference 4 | . . . . . . . . . . . . 1 . . . . 3 Short Circuit 1 | . . . . . . . . . . . . . . . . . 1 Damage (minor) 2 | . . . . . . . . . . 1 . . . . . . 1 Damage (core) 4 | . . . . . . . . . . 2 . . . . . . 2 Siege Activations 1 | . . . . . . . . . . . . . . . . . 1 Total Turns 34 | . . . . . . . . . . . . . . . . . 34 Longest Duration 34 | . . . . . . . . . . . . . . . . . 34 Robots Corrupted 6 | . . . . . . . . . . . . 2 3 1 . . . Combat Hostiles 4 | . . . . . . . . . . . . . 3 1 . . . Parts Fried 23 | . . . . . 5 . . . . . . 5 9 1 . 3 . Impact Corruptions 21 | . . . . . . . . . . . . 7 13 1 . . . Robots Melted 3 | . . . . . . . . . . . . . . . . 1 2 Combat Hostiles 2 | . . . . . . . . . . . . . . . . . 2 Parts Melted 12 | . . . . . . . . . . 1 . 2 . . . 2 7 Heat Transferred 6750 | . . . . . . . . . . 50 293 1349 . . . 509 4549 Parts Sabotaged . | . . . . . . . . . . . . . . . . . . Parts Stolen . | . . . . . . . . . . . . . . . . . . Parts Stripped . | . . . . . . . . . . . . . . . . . . Power Chain Reactions 2 | . . . . . . . . . . . . . . . . 2 . Alert | -11 -10 -10 -7 -7 -5 -5 -5 -5 -4 -4 -4 -4 -3 -3 -3 -2 -2 ------- Run | Yrd Mat Sub Rec Scr Fac Upp Upp Zhi Pro Fac Gar Fac Res Arm Lab Res Tes Peak Influence 1002 | 25 365 . 177 . 810 . . . . 1002 744 646 529 489 . 248 976 Initial 618 | . 13 . 49 . . . . . . 40 618 338 293 240 . . 112 Average 272 | 10 75 . 45 . 415 . . . . 455 677 371 361 405 . 183 309 Maximum Alert Level 3 | . 1 . . . 3 . . . . 3 3 2 2 2 . 1 3 Low Security (%) 48 | 100 90 . 100 . 30 . . . . 21 . . . . . 40 58 Level 1 22 | . 9 . . . 5 . . . . 24 . 68 67 33 . 59 15 Level 2 22 | . . . . . 53 . . . . 35 76 31 32 66 . . 8 Level 3 6 | . . . . . 11 . . . . 18 23 . . . . . 16 Level 4 . | . . . . . . . . . . . . . . . . . . Level 5 . | . . . . . . . . . . . . . . . . . . High Security . | . . . . . . . . . . . . . . . . . . Max Security . | . . . . . . . . . . . . . . . . . . Squads Dispatched 56 | . 2 . . . 9 . . . . 16 . 11 1 3 . 4 10 Investigation 30 | . 2 . . . 7 . . . . 10 . 8 . 2 . . 1 Extermination 7 | . . . . . 1 . . . . 2 . 1 . . . 1 2 Reinforcement 14 | . . . . . 1 . . . . 4 . 2 . . . 3 4 Assault 2 | . . . . . . . . . . . . . 1 1 . . . Garrison . | . . . . . . . . . . . . . . . . . . Intercept 3 | . . . . . . . . . . . . . . . . . 3 Searches Triggered 3 | . . . . . 1 . . . . 1 . 1 . . . . . Construction Impeded 1 | . . . . . . . . . . 1 . . . . . . . Haulers Reinforced 2 | . . . . . . . . . . . . 1 . . . . 1 Active Scanning Responses . | . . . . . . . . . . . . . . . . . . Cargo Convoy Interrupts . | . . . . . . . . . . . . . . . . . . Stealth | -11 -10 -10 -7 -7 -5 -5 -5 -5 -4 -4 -4 -4 -3 -3 -3 -2 -2 --------- Run | Yrd Mat Sub Rec Scr Fac Upp Upp Zhi Pro Fac Gar Fac Res Arm Lab Res Tes Distress Signals 12 | . . . . . 3 . . . . 4 . 3 . . . 2 . Communications Jammed 164 | . . . . . . . . . . 4 . . 19 . . 141 . Distress Signals 164 | . . . . . . . . . . 4 . . 19 . . 141 . Times Spotted 344 | . 22 9 3 . 67 9 7 . 11 75 18 28 18 4 1 28 44 Peak Tracking Total 19 | . 4 4 2 . 13 6 5 . 7 16 19 8 7 4 1 11 11 Tactical Retreats 51 | . 1 . . . 13 5 . . 1 15 1 7 3 . . 3 2 Traps | -11 -10 -10 -7 -7 -5 -5 -5 -5 -4 -4 -4 -4 -3 -3 -3 -2 -2 ------- Run | Yrd Mat Sub Rec Scr Fac Upp Upp Zhi Pro Fac Gar Fac Res Arm Lab Res Tes Traps Triggered 9 | . 2 1 . . 4 . . . . . . 2 . . . . . Indirectly . | . . . . . . . . . . . . . . . . . . Trap Hack Attempts 52 | . . . . . . . . . . 52 . . . . . . . Triggered . | . . . . . . . . . . . . . . . . . . Disarmed 4 | . . . . . . . . . . 4 . . . . . . . Reprogrammed 8 | . . . . . . . . . . 8 . . . . . . . Reused 1 | . . . . . . . . . . 1 . . . . . . . Traps Extracted . | . . . . . . . . . . . . . . . . . . Installed . | . . . . . . . . . . . . . . . . . . Triggered 5 | . . 1 . . . . 2 . 1 1 . . . . . . . Most Traps Carried 1 | . . 1 . . . . . . . . . . . . . . . Objects Rigged 10 | . . . . . . . . . . 8 . 2 . . . . . Exploded 1 | . . . . . . . . . . . . 1 . . . . . Time Bombs Activated 3 | . . . . . . . . . 1 2 . . . . . . . Exploded 3 | . . . . . . . . . 1 2 . . . . . . . Machines | -11 -10 -10 -7 -7 -5 -5 -5 -5 -4 -4 -4 -4 -3 -3 -3 -2 -2 ---------- Run | Yrd Mat Sub Rec Scr Fac Upp Upp Zhi Pro Fac Gar Fac Res Arm Lab Res Tes Machines Disabled 23 | . 1 5 . . . . . . . 5 . 6 . 1 1 . 4 Max in Single Turn 4 | . 1 4 . . . . . . . 1 . 2 . 1 1 . 1 Garrison Access 4 | . . . . . 2 . . . . . . 1 1 . . . . Energy Cycler 1 | . . . . . . . . . . . . . . 1 . . . Machines Repaired . | . . . . . . . . . . . . . . . . . . Machines Dismantled . | . . . . . . . . . . . . . . . . . . Machines Sabotaged 1 | . . . . . . . . . . 1 . . . . . . . Overloaded Fab Kills . | . . . . . . . . . . . . . . . . . . Hacking | -11 -10 -10 -7 -7 -5 -5 -5 -5 -4 -4 -4 -4 -3 -3 -3 -2 -2 --------- Run | Yrd Mat Sub Rec Scr Fac Upp Upp Zhi Pro Fac Gar Fac Res Arm Lab Res Tes Machines Accessed 97 | . 8 2 11 5 14 . . 5 . 26 1 13 2 5 2 . 3 Terminals 39 | . 6 . 5 . 4 . . . . 12 1 7 1 2 . . 1 Fabricators 10 | . . . . . 1 . . . . 5 . . . 3 . . 1 Repair Stations 8 | . 1 . . . 2 . . . . 2 . 2 . . . . 1 Recycling Units 17 | . 1 . 6 . 4 . . . . 4 . 2 . . . . . Scanalyzers 4 | . . . . . 1 . . . . 2 . 1 . . . . . Garrison Access 5 | . . . . . 2 . . . . 1 . 1 1 . . . . Total Hacks 348 | . 23 12 37 31 39 . . 18 . 109 3 35 5 10 19 . 7 Successful 277 | . 18 12 22 31 31 . . 18 . 89 1 21 3 8 19 . 4 Failed 71 | . 5 . 15 . 8 . . . . 20 2 14 2 2 . . 3 Catastrophic 5 | . . . 1 . . . . . . 3 . 1 . . . . . Database Lockouts . | . . . . . . . . . . . . . . . . . . Manual 167 | . 20 . 25 . 17 . . . . 74 2 20 1 2 1 . 5 Terminals 133 | . 18 . 11 . 12 . . . . 61 3 19 3 3 . . 3 Fabricators 34 | . . . . . 6 . . . . 19 . . . 7 . . 2 Repair Stations 23 | . 2 . . . 5 . . . . 6 . 8 . . . . 2 Recycling Units 46 | . 3 . 26 . 4 . . . . 10 . 3 . . . . . Scanalyzers 21 | . . . . . 9 . . . . 9 . 3 . . . . . Garrison Access 11 | . . . . . 3 . . . . 4 . 2 2 . . . . Terminal Hacks 106 | . 5 12 . 31 3 . . 18 . 14 1 2 . 1 19 . . Record 60 | . . 11 . 23 . . . 6 . . . 1 . . 19 . . Part Schematic 4 | . . . . . . . . 4 . . . . . . . . . Robot Schematic 3 | . 1 . . . . . . . . 1 . . . 1 . . . Robot Analysis 14 | . 2 . . 7 . . . 4 . 1 . . . . . . . Prototype ID Bank 4 | . . . . . . . . 4 . . . . . . . . . Branch Access Points 2 | . . . . . 1 . . . . 1 . . . . . . . Terminal Index 2 | . . . . . 1 . . . . 1 . . . . . . . Recycling Unit Index 1 | . . . . . . . . . . 1 . . . . . . . Scanalyzer Index 1 | . . . . . . . . . . 1 . . . . . . . Garrison Index 1 | . . . . . . . . . . 1 . . . . . . . Alert Level 1 | . . . . . . . . . . 1 . . . . . . . Unreport Threat 4 | . 2 . . . . . . . . 2 . . . . . . . Locate Traps 2 | . . . . . . . . . . 2 . . . . . . . Reprogram Traps 1 | . . . . . . . . . . 1 . . . . . . . Dispatch Records 1 | . . . . . . . . . . 1 . . . . . . . Recall Investigation 2 | . . . . . 1 . . . . . . 1 . . . . . Garrison Registry 1 | . . . . . . . . . . . 1 . . . . . . Derelict Proto ID Bank 2 | . . 1 . 1 . . . . . . . . . . . . . Fabricator Hacks 13 | . . . . . 3 . . . . 3 . . . 5 . . 2 Network Status 2 | . . . . . 1 . . . . 1 . . . . . . . Load Schematic 6 | . . . . . 1 . . . . 1 . . . 3 . . 1 Build 5 | . . . . . 1 . . . . 1 . . . 2 . . 1 Repair Station Hacks 12 | . 2 . . . 2 . . . . 5 . 3 . . . . . Scan Component 6 | . 1 . . . 1 . . . . 2 . 2 . . . . . Repair 5 | . 1 . . . 1 . . . . 2 . 1 . . . . . Refit 1 | . . . . . . . . . . 1 . . . . . . . Recycling Unit Hacks 8 | . 1 . 3 . . . . . . 4 . . . . . . . Retrieve Matter 2 | . . . . . . . . . . 2 . . . . . . . Retrieve Components 6 | . 1 . 3 . . . . . . 2 . . . . . . . Scanalyzer 17 | . . . . . 8 . . . . 8 . 1 . . . . . Insert Component 9 | . . . . . 4 . . . . 4 . 1 . . . . . Analyze 8 | . . . . . 4 . . . . 4 . . . . . . . Garrison Access Hacks 7 | . . . . . 2 . . . . 1 . 2 2 . . . . Unlock Access 1 | . . . . . . . . . . 1 . . . . . . . Seal Access 4 | . . . . . 2 . . . . . . 1 1 . . . . Coupler Status 2 | . . . . . . . . . . . . 1 1 . . . . Unauthorized Hacks 114 | . 10 . 19 . 13 . . . . 54 . 13 1 2 . . 2 Terminals 62 | . 8 . 3 . 7 . . . . 32 . 9 1 1 . . 1 Track 19 | . 4 . 1 . 2 . . . . 9 . 2 . . . . 1 Assimilate 3 | . . . . . 1 . . . . 1 . 1 . . . . . Botnet 16 | . 3 . 2 . 2 . . . . 4 . 3 1 1 . . . Detonate 7 | . . . . . . . . . . 6 . 1 . . . . . Disrupt 2 | . . . . . . . . . . 2 . . . . . . . Operators 2 | . . . . . 1 . . . . 1 . . . . . . . Skim 11 | . 1 . . . 1 . . . . 7 . 2 . . . . . Sabotage 2 | . . . . . . . . . . 2 . . . . . . . Fabricators 17 | . . . . . 1 . . . . 15 . . . 1 . . . Report 2 | . . . . . . . . . . 2 . . . . . . . Prioritize 4 | . . . . . . . . . . 4 . . . . . . . Liberate 6 | . . . . . 1 . . . . 5 . . . . . . . Fabnet 1 | . . . . . . . . . . 1 . . . . . . . Haulers 2 | . . . . . . . . . . 2 . . . . . . . Recompile 2 | . . . . . . . . . . 1 . . . 1 . . . Repair Stations 11 | . . . . . 4 . . . . 4 . 2 . . . . 1 Patch 2 | . . . . . . . . . . . . 1 . . . . 1 Recycling Units 20 | . 2 . 16 . . . . . . . . 2 . . . . . Monitor 1 | . . . 1 . . . . . . . . . . . . . . Reject 8 | . 1 . 6 . . . . . . . . 1 . . . . . Recyclers 3 | . 1 . 1 . . . . . . . . 1 . . . . . Mask 5 | . . . 5 . . . . . . . . . . . . . . Tunnel 3 | . . . 3 . . . . . . . . . . . . . . Scrapoids 9 | . . . . . 4 . . . . 4 . 1 . . . . . Scanalyzers 1 | . . . . . 1 . . . . . . . . . . . . Extract 1 | . . . . . 1 . . . . . . . . . . . . Garrison Access 3 | . . . . . . . . . . 3 . . . . . . . Broadcast 1 | . . . . . . . . . . 1 . . . . . . . Decoy 1 | . . . . . . . . . . 1 . . . . . . . Reprogram 1 | . . . . . . . . . . 1 . . . . . . . Data Cores Recovered 1 | . . . . . . . . . . . . . . . . . 1 Used . | . . . . . . . . . . . . . . . . . . Hacking Detections 54 | . 5 . 10 . 4 . . . . 20 1 9 1 3 . . 1 Full Trace Events 11 | . . . 1 . 1 . . . . 2 1 5 . 1 . . . Feedback Events 1 | . . . . . . . . . . 1 . . . . . . . Corruption 1 | . . . . . . . . . . 1 . . . . . . . Feedback Blocked . | . . . . . . . . . . . . . . . . . . Robot Schematics Acquired 5 | . 1 . . . . . . . . 1 . . . 1 . . 2 Robots Built 2 | . . . . . . . . . . 2 . . . . . . . Authchips . | . . . . . . . . . . . . . . . . . . Time 13 | . . . . . . . . . . 13 . . . . . . . Total Robot Build Rating 2 | . . . . . . . . . . 2 . . . . . . . Part Schematics Acquired 21 | . . . . . 5 . . 4 . 4 . . . . . . 8 Parts Built 4 | . . . . . 1 . . . . . . . . 2 . . 1 Authchips 2 | . . . . . . . . . . . . . . 1 . . 1 Time 324 | . . . . . 25 . . . . . . . . 112 . . 187 Total Part Build Rating 20 | . . . . . 1 . . . . . . . . 12 . . 7 Parts Repaired 5 | . 1 . . . 1 . . . . 2 . 1 . . . . . Time 119 | . 26 . . . 38 . . . . 24 . 31 . . . . . Parts Recycled . | . . . . . . . . . . . . . . . . . . Recycled Matter . | . . . . . . . . . . . . . . . . . . Retrieved Matter . | . . . . . . . . . . . . . . . . . . Retrieved Components 11 | . . . 6 . . . . . . 5 . . . . . . . Parts Scanalyzed 9 | . . . . . 4 . . . . 4 . 1 . . . . . Part Schematics Acquired 8 | . . . . . 4 . . . . 4 . . . . . . . Parts Damaged 2 | . . . . . 1 . . . . 1 . . . . . . . Bothacking | -11 -10 -10 -7 -7 -5 -5 -5 -5 -4 -4 -4 -4 -3 -3 -3 -2 -2 ------------ Run | Yrd Mat Sub Rec Scr Fac Upp Upp Zhi Pro Fac Gar Fac Res Arm Lab Res Tes Used RIF Installer 1 | . . . . . . . . . . . 1 . . . . . . Robots Hacked 11 | . . . . . 3 . . 3 . 4 1 . . . . . . Non-combat 6 | . . . . . 3 . . . . 3 . . . . . . . Combat 3 | . . . . . . . . 3 . . . . . . . . . Robot Hacks Applied 10 | . . . . . 4 . . 3 . 3 . . . . . . . parse_system 4 | . . . . . . . . 3 . 1 . . . . . . . find_chute 6 | . . . . . 4 . . . . 2 . . . . . . . Manual 2 | . . . . . . . . . . 1 1 . . . . . . Relay Couplers Released 4 | . . . . . . . . . . 4 . . . . . . . Programmers 4 | . . . . . . . . . . 4 . . . . . . . Fabnet Peak Effective % 3 | . . . . . . . . . . . . . 3 3 3 1 1 Robots Rewired 5 | . . . . . . . . . . . . . . 3 . 2 . Allies Hacked 1 | . . . . . . . . . . 1 . . . . . . . Hacks Repelled . | . . . . . . . . . . . . . . . . . . Allies | -11 -10 -10 -7 -7 -5 -5 -5 -5 -4 -4 -4 -4 -3 -3 -3 -2 -2 -------- Run | Yrd Mat Sub Rec Scr Fac Upp Upp Zhi Pro Fac Gar Fac Res Arm Lab Res Tes Total Allies 53 | . . . . . 21 . . . . 21 . 6 . 3 . 2 . Largest Group 7 | . . . . . 5 . . . . 7 . 5 . 3 . 1 . Highest-Rated Group 254 | . . . . . 235 . . . . 254 . 235 . 146 . 69 . Highest-Rated Ally 69 | . . . . . 47 . . . . 50 . 47 . 56 . 69 . Total Orders 3 | . . . . . 1 . 2 . . . . . . . . . . EXPLORE 3 | . . . . . 1 . 2 . . . . . . . . . . Ally Attacks 368 | . . . . . 170 . . . . 109 . 43 . 19 . 7 20 Total Damage 8631 | . . . . . 3740 . . . . 2634 . 731 . 689 . 417 420 Kills 55 | . . . . . 26 . . . . 16 . 4 . 5 . 1 3 Allies Corrupted . | . . . . . . . . . . . . . . . . . . Allies Melted 1 | . . . . . 1 . . . . . . . . . . . . Intel | -11 -10 -10 -7 -7 -5 -5 -5 -5 -4 -4 -4 -4 -3 -3 -3 -2 -2 ------- Run | Yrd Mat Sub Rec Scr Fac Upp Upp Zhi Pro Fac Gar Fac Res Arm Lab Res Tes Robot Analysis Total 14 | . 2 . . 7 . . . 4 . 1 . . . . . . . Derelict Logs Recovered 9 | . . 1 . 2 . 2 2 . 2 . . . . . . . . Drone Launches 11 | . . . . . 5 . 4 . . . . . . . . . 2 Drone Recoveries 4 | . . . . . 2 . 2 . . . . . . . . . . Exploration | -11 -10 -10 -7 -7 -5 -5 -5 -5 -4 -4 -4 -4 -3 -3 -3 -2 -2 ------------- Run | Yrd Mat Sub Rec Scr Fac Upp Upp Zhi Pro Fac Gar Fac Res Arm Lab Res Tes Turns Passed 12270 | 130 1498 630 1229 2323 931 158 377 120 483 1151 226 967 349 327 223 329 819 Spaces Moved 12714 | 82 826 404 714 1722 1565 321 442 209 599 2301 433 1184 392 299 275 214 732 Core 441 | 4 . . . 437 . . . . . . . . . . . . . Treads 2268 | . . 188 714 1285 . . . . . . . . . . . . 81 Legs 16 | . . . . . . . . . . . . 12 . . . . 4 Wheels 1120 | 78 826 216 . . . . . . . . . . . . . . . Hover 1995 | . . . . . . . . . . 56 . 479 392 299 275 210 284 Flight 6874 | . . . . . 1565 321 442 209 599 2245 433 693 . . . 4 363 Fastest Speed 10 | 50 80 95 160 50 34 34 34 34 34 22 29 22 59 53 49 49 10 Average Speed 66 | 78 90 125 160 131 42 34 34 34 63 31 29 41 59 56 50 67 50 Slowest Speed 262 | 80 95 160 160 160 140 34 89 89 89 96 29 190 59 59 114 262 225 Overloaded Moves 76 | . . . . . . . . . . . . 15 . . . 51 10 Propulsion Burnouts . | . . . . . . . . . . . . . . . . . . Robots Hopped 12 | . . . . . 2 2 . . . 6 1 1 . . . . . Cave-ins Triggered . | . . . . . . . . . . . . . . . . . . Teleports 2 | . . . . . . . . . . . . . . 1 . . 1 Exploration Rate (%) 50 | 5 87 34 96 80 39 48 73 62 72 62 51 32 10 16 96 7 45 Regions Visited 17 Branch Regions 10 Pre-discovered Areas 13 | . . . 3 5 . . . 3 1 1 . . . . . . . Known Exits Taken 9 | . . . . . 1 1 1 1 1 1 . 1 1 . 1 . . Unknown Exits Taken 7 | 1 1 1 1 1 . . . . . . . . . 1 . 1 . Scrap Searched 13 | . . 3 . 4 . . 4 . 2 . . . . . . . . Spaces Dug 120 | . . . . . . . . . 4 71 12 16 8 . . 5 4 Terrain Destroyed 622 | . 42 33 40 . . . 27 . 16 160 20 76 8 . . 10 190 Melee 47 | . . . . . . . . . 4 20 . 8 8 . . 3 4 Projectile 70 | . 1 1 . . . . . . . 17 20 26 . . . 3 2 AOE 505 | . 41 32 40 . . . 27 . 12 123 . 42 . . . 4 184 Terrain Rammed . | . . . . . . . . . . . . . . . . . . Walls Destroyed . | . . . . . . . . . . . . . . . . . . Machines Disabled . | . . . . . . . . . . . . . . . . . . Actions | -11 -10 -10 -7 -7 -5 -5 -5 -5 -4 -4 -4 -4 -3 -3 -3 -2 -2 --------- Run | Yrd Mat Sub Rec Scr Fac Upp Upp Zhi Pro Fac Gar Fac Res Arm Lab Res Tes Total 15725 | 116 1458 476 781 1802 1814 367 656 247 694 2638 483 1537 467 447 329 325 1088 Wait 1667 | . 555 20 33 . 145 47 181 . 80 136 13 128 42 105 3 11 168 Move 12674 | 81 825 403 713 1721 1560 316 441 208 598 2289 430 1181 391 298 274 213 732 Hop 11 | . . . . . 2 2 . . . 5 1 1 . . . . . Pick Up 184 | 10 6 7 5 38 12 1 7 9 3 15 2 37 3 2 7 8 12 Fast Attach 150 | 7 2 3 3 5 14 . 2 4 1 25 2 24 1 3 10 8 36 Attach 99 | . . 3 4 2 22 . 4 1 1 6 1 11 2 2 2 14 24 Detach 42 | . . . . . 11 . 1 . . 3 . 6 . 1 . 2 18 Swap 57 | . 6 1 2 2 2 . 2 . . 5 4 13 5 6 . 4 5 Drop 239 | 2 4 12 8 34 22 1 7 11 4 26 4 43 3 6 13 5 34 Fire 347 | 16 60 27 9 . 18 . 11 3 2 41 26 68 2 2 2 33 27 Melee 169 | . . . 4 . 6 . . 11 4 33 . 13 18 3 18 27 32 Ram . | . . . . . . . . . . . . . . . . . . Kick . | . . . . . . . . . . . . . . . . . . Crush . | . . . . . . . . . . . . . . . . . . Escape Stasis 12 | . . . . . . . . . . . . 12 . . . . . Rewire 19 | . . . . . . . . . . . . . . 19 . . . Trap 55 | . . . . . . . . . 1 54 . . . . . . . Miscellaneous . | . . . . . . . . . . . . . . . . . . Route ------- -11/Scrapyard -10/Materials (discovered 4 exits: [*Mat x3] / *Sub) -10/Subcaves -7/Recycling (discovered 2 exits: *Fac / *Scr) -7/Scraptown (discovered 2 exits: *Fac x2) -5/Factory (discovered 5 exits: *Fac x3 / *Upp x2) -5/Upper Caves -5/Upper Caves (discovered 2 exits: *Fac / *Zhi) -5/Zhirov -4/Proximity Caves -4/Factory (discovered 7 exits: *Res x4 / *Upp x2 / Gar) -4/Garrison (discovered 3 exits: *Fac x3) -4/Factory (discovered 3 exits: *Res / *Upp x2) -3/Research (discovered 6 exits: Res x3 / *Arm / Qua x2) -3/Armory -3/Lab -2/Research -2/Testing History --------- Turn | Location | Event 30 | -11/Scrapyard | Discovered new exit (range 15) 131 | -11/Scrapyard | Entered Materials 286 | -10/Materials | Discovered new exit (range 15) 300 | -10/Materials | Build established: Mutant 375 | -10/Materials | Discovered new exit (range 3) 423 | -10/Materials | Destroyed 8 combat bots 886 | -10/Materials | Discovered new exit (range 16) 933 | -10/Materials | Repaired Wheel 1507 | -10/Materials | Discovered new exit (range 3) 1629 | -10/Materials | Entered Subcaves 1642 | -10/Subcaves | Learned Materials stockpile data 1663 | -10/Subcaves | Visited Clippyterm 1666 | -10/Subcaves | Learned Research security intel 1828 | -10/Subcaves | Visited 4L-MR0's lab 1906 | -10/Subcaves | Found Flightbrick 2034 | -10/Subcaves | Shifting Twisted Machinery released Battle Rifle 2057 | -10/Subcaves | Shifting Twisted Machinery released Sub. Machine Gun 2094 | -10/Subcaves | A swath of the cavern ceiling suddenly collapsed 2223 | -10/Subcaves | Discovered new exit (range 15) 2259 | -10/Subcaves | Entered Recycling 2914 | -7/Recycling | Discovered new exit (range 15) 3380 | -7/Recycling | Scanned before Scraplab entrance 3472 | -7/Recycling | Entered Scraplab 3485 | -7/Recycling | Discovered new exit (range 3) 3488 | -7/Recycling | Entered Scraptown 3521 | -7/Scraptown | Build established: Scavenger-Mutant 3645 | -7/Scraptown | Visited UFD Registry 3645 | -7/Scraptown | Registered with UFD as "Novasys" 3760 | -7/Scraptown | Delivered Scrap Shield to a Scientist 3957 | -7/Scraptown | Scanned Subdweller tech in exchange for log data 3962 | -7/Scraptown | Learned Factory security intel 3964 | -7/Scraptown | Learned location of Testing (-2) 4066 | -7/Scraptown | Discovered new exit (range 11) 4516 | -7/Scraptown | Visited Scrap Suit Storage 4563 | -7/Scraptown | Visited Abandonware Association 4580 | -7/Scraptown | Learned abandonware demo "KABOOM.EXE" 4580 | -7/Scraptown | Learned abandonware demo "MELTYB.EXE" 4643 | -7/Scraptown | Visited LU-1G1's Boring Crew 4871 | -7/Scraptown | Visited Observation Area 5027 | -7/Scraptown | Visited Research Penetration Think Tank 5148 | -7/Scraptown | Visited A0-MCA Data Center 5158 | -7/Scraptown | Given a B+ rating by A0-MCA 5166 | -7/Scraptown | Found A0-MCA's Component Scanner 5212 | -7/Scraptown | Visited DA-N13 Charitable Foundation 5226 | -7/Scraptown | Found DCF Scrap (27 items) 5321 | -7/Scraptown | Visited Science Guys 5382 | -7/Scraptown | Visited Cartography Club 5442 | -7/Scraptown | Found Surveybot 17 Chip 5477 | -7/Scraptown | Learned location of Storage (-7) 5477 | -7/Scraptown | Learned location of Proximity Caves (-5) 5477 | -7/Scraptown | Learned 4 Recycling zone layouts 5477 | -7/Scraptown | Learned 12 Proximity Caves zone layouts 5477 | -7/Scraptown | Learned Factory emergency access door positions 5477 | -7/Scraptown | Learned location of 3 exits from Factory 5477 | -7/Scraptown | Learned 20 Lower Caves zone layouts 5477 | -7/Scraptown | Learned 8 Factory zone layouts 5477 | -7/Scraptown | Learned 4 Armory zone layouts 5477 | -7/Scraptown | Learned location of 3 exits from Proximity Caves 5546 | -7/Scraptown | Build established: Mutant 5585 | -7/Scraptown | Visited Analyses Database 5804 | -7/Scraptown | Discovered new exit (range 5) 5811 | -7/Scraptown | Entered Factory 5811 | -5/Factory | Evolved 10 slots: Power x1, Propulsion x3, Utility x5, Weapon x1 5812 | -5/Factory | Identified exit to Factory 5813 | -5/Factory | Attached Flightbrick, gained temporary slots: Utility x3 6083 | -5/Factory | Spotted B-75 Beast 6111 | -5/Factory | Discovered new exit (range 10) 6121 | -5/Factory | Scrapoids reinforcements arrived? 6147 | -5/Factory | Build established: Derelict-Mutant 6153 | -5/Factory | Scrapoid reinforcements arrived 6273 | -5/Factory | Lost 5 allies 6310 | -5/Factory | Scrapoids reinforcements arrived? 6414 | -5/Factory | Repaired Imp. Light Armor Plating 6493 | -5/Factory | Scrapoids reinforcements arrived? 6538 | -5/Factory | Fabricated Med. Storage Unit (x1) 6663 | -5/Factory | Identified exit to Upper Caves 6702 | -5/Factory | Build established: Hacker-Mutant 6711 | -5/Factory | Search patrols dispatched 6742 | -5/Factory | Entered Upper Caves 6744 | -5/Upper Caves | UFD Scientist delivered a prototype 6745 | -5/Upper Caves | Found Enh. Scrap Shield 6785 | -5/Upper Caves | Attracted the attention of an 0b10 checkpoint 6791 | -5/Upper Caves | Learned Factory garrison access intel 6843 | -5/Upper Caves | Learned Factory emergency access door positions 6875 | -5/Upper Caves | Discovered new exit (range 16) 6885 | -5/Upper Caves | Identified exit to Upper Caves 6900 | -5/Upper Caves | Entered another Upper Caves area 6915 | -5/Upper Caves | Discovered exit to Factory (range 9) 7115 | -5/Upper Caves | Learned Factory emergency access door positions 7229 | -5/Upper Caves | Attracted the attention of an 0b10 checkpoint 7235 | -5/Upper Caves | Found DCF Scrap (12 items) 7264 | -5/Upper Caves | Discovered new exit (range 14) 7267 | -5/Upper Caves | Identified exit to Zhirov 7273 | -5/Upper Caves | Learned Factory trap positions 7277 | -5/Upper Caves | Entered Zhirov 7278 | -5/Zhirov | Discovered new exit (range 3) 7284 | -5/Zhirov | Met Zhirov 7296 | -5/Zhirov | Learned location of Quarantine (-3) 7296 | -5/Zhirov | Learned location of Command (-1) 7302 | -5/Zhirov | Zhirov requested help retrieving the SGEMP Prototype 7308 | -5/Zhirov | Found Alien Artifact 7313 | -5/Zhirov | Found Alien Artifact 7313 | -5/Zhirov | Identified Integrated Reactor 7313 | -5/Zhirov | Installed Integrated Reactor, increased core energy generation (+10) 7396 | -5/Zhirov | Identified exit to Proximity Caves 7397 | -5/Zhirov | Entered Proximity Caves 7630 | -4/Proximity Caves | Encountered a Derelict sapper outpost 7645 | -4/Proximity Caves | Learned location of 2 exits from Research 7880 | -4/Proximity Caves | Entered Factory 7880 | -4/Factory | Evolved 2 slots: Propulsion x1, Utility x1 7881 | -4/Factory | Identified exit to Research 7882 | -4/Factory | Loaded intel: 90 trap records 7884 | -4/Factory | Loaded intel: 4 garrison access locations 7912 | -4/Factory | Spotted B-86 Titan 7948 | -4/Factory | Spotted B-86 Titan 8016 | -4/Factory | Identified exit to Upper Caves 8036 | -4/Factory | Identified exit to Garrison 8165 | -4/Factory | Repaired Missile Launcher 8184 | -4/Factory | Repaired Imp. Terrain Scanner 8205 | -4/Factory | Build established: Hacker-Sprinter 8273 | -4/Factory | Fabricated R-06 Scavenger (x2) 8402 | -4/Factory | Scrapoids reinforcements arrived? 8470 | -4/Factory | Lost 5 allies 8498 | -4/Factory | Found Exp. System Shield 8516 | -4/Factory | Scrapoids reinforcements arrived? 8591 | -4/Factory | Discovered exit to Research (range 16) 8786 | -4/Factory | Lost 10 parts (2p2n2u4w) 8789 | -4/Factory | Learned location of 2 exits from Research 8879 | -4/Factory | Learned location of 2 exits from Factory 8911 | -4/Factory | Search patrols dispatched 8919 | -4/Factory | Core integrity fell below 50% 8943 | -4/Factory | Learned location of 1 exit from Research 8963 | -4/Factory | Learned location of 1 exit from Quarantine 8972 | -4/Factory | Scrapoids reinforcements arrived? 8994 | -4/Factory | Learned Quarantine scanalyzer intel 8994 | -4/Factory | Scrapoids reinforcements arrived? 9031 | -4/Factory | Entered Garrison 9075 | -4/Garrison | Spotted B-86 Titan 9078 | -4/Garrison | Discovered new exit (range 39) 9078 | -4/Garrison | Discovered new exit (range 40) 9078 | -4/Garrison | Discovered new exit (range 50) 9254 | -4/Garrison | Installed Relay Interface Framework 9257 | -4/Garrison | Entered Factory 9507 | -4/Factory | Search patrols dispatched 9524 | -4/Factory | Repaired Field Propulsion Array? 9708 | -4/Factory | Scrapoids reinforcements arrived? 9804 | -4/Factory | Found Scrap Suit 10113 | -4/Factory | Found Prototype Launcher 10113 | -4/Factory | Identified Com. Tesla Bomb Launcher 10133 | -4/Factory | Discovered exit to Upper Caves (range 9) 10212 | -4/Factory | Core integrity fell below 20% 10224 | -4/Factory | Entered Research 10224 | -3/Research | Evolved 2 slots: Utility x1, Weapon x1 10225 | -3/Research | Identified exit to Quarantine 10226 | -3/Research | Identified exit to Research 10226 | -3/Research | Identified exit to Armory 10474 | -3/Research | First assault squad dispatched 10573 | -3/Research | Entered Armory 10666 | -3/Armory | Energy Cycler disabled 10716 | -3/Armory | Fabricated Cld. Gravmag System (x1) 10739 | -3/Armory | Fabricated Cld. Gravmag System (x1) 10823 | -3/Armory | First assault squad dispatched 10898 | -3/Armory | Identified Transdimensional Reconstructor 10898 | -3/Armory | Warped through subspace to slip node 10898 | -3/Armory | Discovered new exit (range 1) 10900 | -3/Armory | Entered Lab 10900 | -3/Lab | Discovered exit to Research (range 9) 10907 | -3/Lab | Unable to decrypt terminal 10907 | -3/Lab | Opened the door to a hidden lab 10908 | -3/Lab | Gained access to the hidden lab's interior 10910 | -3/Lab | Detected by scanners 10919 | -3/Lab | Found Alien Artifact 10919 | -3/Lab | Identified Core Regenerator 10919 | -3/Lab | Used Core Regenerator, restored core integrity (+254) 10926 | -3/Lab | Found Integrated Reactor 10926 | -3/Lab | Installed Integrated Reactor, increased core energy generation (+10) 10930 | -3/Lab | Confronted by A5 10978 | -3/Lab | Destroyed A5 10986 | -3/Lab | Found Exp. System Shield 10994 | -3/Lab | Unable to decrypt terminal 11007 | -3/Lab | Found Transdimensional Reconstructor 11019 | -3/Lab | Found Prototype Energy Cannon 11019 | -3/Lab | Identified Warp Cannon 11022 | -3/Lab | Found Prototype Energy Gun 11022 | -3/Lab | Identified Hyp. EM Gauss Rifle 11026 | -3/Lab | Found Prototype Protection 11026 | -3/Lab | Identified Hvy. Regenerative Plating 11073 | -3/Lab | Unable to decrypt terminal 11106 | -3/Lab | Found Alien Artifact 11115 | -3/Lab | Unable to decrypt terminal 11117 | -3/Lab | Unable to decrypt terminal 11123 | -3/Lab | Entered Research 11123 | -2/Research | Evolved 2 slots: Utility x2 11136 | -2/Research | Spotted B-90 Cyclops 11282 | -2/Research | Lost 7 parts (2n4u1w) 11358 | -2/Research | Found Quantum Capacitor 11407 | -2/Research | System corruption reached 10% 11429 | -2/Research | Discovered new exit (range 6) 11441 | -2/Research | System corruption reached 30% 11452 | -2/Research | Entered Testing 11468 | -2/Testing | Lost 13 parts (2p4n4u3w) 11700 | -2/Testing | Found Prototype Device 11700 | -2/Testing | Identified Beam Splitter 11705 | -2/Testing | Found Prototype Processor 11705 | -2/Testing | Identified Exp. Melee Analysis Suite 11877 | -2/Testing | Fabricated Assault Drone Bay? 11922 | -2/Testing | Found Prototype Reactor 11922 | -2/Testing | Identified Zero-point Reactor 11952 | -2/Testing | Found Prototype Energy Gun 11952 | -2/Testing | Identified Tachyon Dispersion Ray 11983 | -2/Testing | Found Prototype Energy Cannon 11983 | -2/Testing | Identified Imp. Potential Cannon 12007 | -2/Testing | Intercept squad dispatched 12027 | -2/Testing | Spotted Tracker 12028 | -2/Testing | Spotted Tracker 12032 | -2/Testing | Core integrity fell below 50% 12037 | -2/Testing | Scanned by Researcher 12039 | -2/Testing | Destroyed Tracker 12039 | -2/Testing | Destroyed Tracker 12059 | -2/Testing | Spotted Combat Programmer 12061 | -2/Testing | Spotted Combat Programmer 12064 | -2/Testing | Destroyed Combat Programmer 12064 | -2/Testing | Destroyed Combat Programmer 12067 | -2/Testing | Warped through subspace 12094 | -2/Testing | Lost 7 parts (2n2u3w) 12131 | -2/Testing | Build established: Scavenger-Mutant 12142 | -2/Testing | Core integrity fell below 20% 12251 | -2/Testing | Spotted PY-M4063E8ALZ 12271 | -2/Testing | Destroyed by H-88 Terminator with KE Penetrator Last Messages --------------- 12266_ U-05 Engineer lays Concrete. 12266_ K-01 Serf collects debris. 12266_ Penetrated by Slug. 12267_ Dropped Adv. Energy Well. 12267_ U-05 Engineer lays Concrete. 12267_ Q374-c follow-up attacks with Enh. Force Lance. 12267_ Critical hit (Impale). 12267_ Penetrated by Slug. 12267_ Imp. Potential Cannon destroyed. 12267_ Penetrated by Slug. 12267_ Biometal Leg destroyed. 12267_ Critical hit (Destroy). 12268_ Extracted 500 energy. 12268_ U-05 Engineer builds a Wall. 12270_ K-01 Serf collects debris. 12271_ System corrupted: Energy discharge (-201). 12271_ Slug penetrates G-73 Enforcer. 12271_ Penetrated by Slug. Map ----- +----------------------------------------------------+ | ?# #?????????????????????????????????????????????? | | ##+####??????????????????????????????????????????? | | # #??????????????????????????????????????????? | | # """ #??????????????????????????????????????????? | | # """ #??????????????????????????????????????????? | | # """ #??????????????????????????????????????????? | | # """ #??????????????????????????????????????????? | | # """ #??????????????????????????????????????????? | | # #?????????????? ?????????????????????????? | | ###+###????????????? ?????????????????????????? | | ??# #??????????????? ###??????????????????????? | | ??# #??????????????? ; #??????????????????????? | | ### ##??????????????#;; ; #??????????????????????? | | # ##############? ; ; ????? +???????????????? | | # # ]#?# ;%; ???? #???????????????? | | # # """"" ### h ##???c #???????????????? | | + + """"" ## #?? #???????????????? | | # # """"" ## #?? #???????????????? | | # # ?## #? #???????????????? | | # "" ;;####; g =## #####???????????? | | # % [ * hh % ??????????? | | %* %=% % R w g ???????????? | | k Q ^ " "????????????? | | ! """?????????????? | | """#####; ;#### " "????????????? | | ! ### @ #??????????????????? | | !! " #######?# "" +??????????????????? | | !! ###???????# " "" #??????????????????? | | #?????????# """ #??????????????????? | | ########### """" #??????????????????? | | ### # "# """"" #??????????????????? | | ### #= "# """"Y #??????????????????? | | ### [#= # """ #??????????????????? | | ### =[+* " % # "?? #????????"" ????? ?? | | ### !#= # " ?" #?????" %%" ???? ?? | | ### !"% # ????????# " [[" ???? "?? | | ### " # ????????? " =""###? "?? | | ### [ "######?????????????" +? " | | ## %![ ##?????????????????# # "" | | "## [ * "###################### + " | | "## % # " | | "## ###??????##" # " | | "## #????????# " [ " "" | | "## * ########## " %! " ? | | "###########"###########+## " #[%*## " % ?? | | #################?#! #% !%! ## " " ??? | | #############?????# # = ##"" = "#???? | | #############??????# """ " + !%[ ##??## | | #############??????# """ " % ####+###[##=###"# | | ###########?#??????# """ " $%$ | +----------------------------------------------------+ Best States ------------- Heat Dissipation 106 Energy Generation 73 Energy Capacity 1290 Matter Stores 526 Matter Capacity 550 Sight Range 22 Terrain Scan Range 20 Terrain Scan Density 1410 Jamming Range 14 Power Amplification 20 Additional Mass Support 16 Corruption Containment 12 Corruption Block 17 Armor Coverage 1500 Resistance: KI 20 Resistance: TH 20 Resistance: EX 20 Resistance: EM 20 Resistance: I 20 Resistance: S 20 Resistance: P 20 Utility Shielding 66 Phase Shifting 5 Evasion (%) 73 Targeting Accuracy 8 Melee Accuracy 8 Launcher Accuracy 30 Target Analysis 12 Recoil Reduction 2 Kinecelleration 40 Offensive Hacking 47 Defensive Hacking 30 Authchip Count 1 Item Schematics ----------------- Arm. Medium Treads | -5/Factory | Scanalyzed Missile Launcher | -5/Factory | Scanalyzed Remote Datajack | -5/Factory | Scanalyzed Transmission Jammer | -5/Factory | Scanalyzed Med. Storage Unit | -5/Factory | Extracted Assault Drone Bay | -5/Zhirov | Free Exp. Heat Sink | -5/Zhirov | Free Exp. Optical Array | -5/Zhirov | Free Imp. Arc Thrower | -5/Zhirov | Free Cld. Gravmag System | -4/Factory | Scanalyzed Imp. Remote Datajack | -4/Factory | Scanalyzed Hcp. Storage Unit | -4/Factory | Scanalyzed Q-thruster | -4/Factory | Scanalyzed Exp. Core Analyzer | -2/Testing | Archive Adv. Gravity Neutralizer | -2/Testing | Archive Shock Maul | -2/Testing | Archive Gravity Neutralizer | -2/Testing | Archive Exp. Shock Absorption System | -2/Testing | Archive Prc. Energy Filter | -2/Testing | Archive Imp. Matter Compressor | -2/Testing | Archive Tactical Quantum Warhead | -2/Testing | Archive Robot Schematics ------------------ M-13 Machinist | -10/Materials | Hacked H-77 Assassin | -4/Factory | Hacked A-27 Freighter | -3/Armory | Hacked R-10 Processor | -2/Testing | Archive G-73 Enforcer | -2/Testing | Archive Fabricated ------------ Med. Storage Unit | x1 | -5/Factory R-06 Scavenger | x2 | -4/Factory | Preloaded Cld. Gravmag System | x1 | -3/Armory | Authchip Cld. Gravmag System | x1 | -3/Armory Assault Drone Bay | x1 | -2/Testing | Authchip Alien Tech Used ----------------- Integrated Reactor Transdimensional Reconstructor Core Regenerator Achievements -------------- Anyone Home? Challenges ------------ None Game ------ Seed VortexDeepDesublimator Manual? 0 Play Time 03:18:58 Cumulative 682.1 hours Start 2024.08.30 @ 18:56:58 End 2024.08.31 @ 12:33:25 Sessions 3 Manual Loads 0 Difficulty Adventurer Special Mode None Game No. 137 Rogue 0 Adventurer 137 Explorer 0 Win Type - Total 11 Types 7/0/1/2/0/0/0/0/1 Lore% 77 Gallery% 83 Achievement% 73 Wizard Run 0 Options --------- Layout 2 ASCII 0 Keyboard 0 Movement Mouse Keybinds 0 Fullscreen 1 Font 24/Smallcaps Map View 50x49 Zoom Use 2% Tactical HUD 1 Map Filters NONE Filters NONE Steam 1 RUN: 2c0757b0-5add-4e0c-8a4f-39c6a28941fc